bitfinex/quotes_BTCUSD_20220307
["timestamp","ask_amount","ask_price","bid_price","bid_amount"]
[1646692423344,0.2129038,38246.0,38232.0,0.10781826]
[1646692423345,0.01307,38246.0,38232.0,0.10781826]
[1646692423586,0.3939,38247.0,38239.0,0.0999]
[1646692423587,0.42014,38247.0,38239.0,0.0999]
[1646692423787,0.4894,38248.0,38241.0,0.065384]
[1646692423987,0.0022,38248.0,38241.0,0.065384]
[1646692425893,0.0022,38248.0,38242.0,0.3]
[1646692426089,0.0022,38248.0,38245.0,0.06537]
[1646692426488,0.00157349,38248.0,38245.0,0.430736]
[1646692426689,0.00157349,38248.0,38245.0,0.580736]
[1646692427088,0.00157349,38248.0,38245.0,0.51537]
[1646692427331,0.00157349,38248.0,38245.0,0.58073819]
[1646692427533,0.00157349,38248.0,38245.0,0.64610319]
[1646692427734,0.00157349,38248.0,38245.0,0.58073819]
[1646692428332,0.00157349,38248.0,38246.0,0.05]
[1646692429332,0.00157349,38248.0,38247.0,0.0999]
[1646692429535,0.00157349,38248.0,38247.0,0.1499]
[1646692431282,0.00115349,38248.0,38247.0,0.1499]
[1646692434285,5.349e-05,38248.0,38247.0,0.1499]
[1646692436349,5.349e-05,38248.0,38247.0,0.17614]
[1646692437244,5.349e-05,38248.0,38247.0,0.1499]
[1646692437444,0.0033,38250.0,38249.0,0.00249478]
[1646692439091,0.0033,38250.0,38249.0,0.30249478]
[1646692439295,0.0033,38250.0,38249.0,0.40249478]
[1646692439491,0.0033,38250.0,38249.0,0.42873478]
[1646692439692,0.0033,38250.0,38249.0,0.46731566]
[1646692439893,0.0033,38250.0,38249.0,0.44107566]
[1646692440498,0.0033,38250.0,38249.0,0.46731566]
[1646692440694,0.0033,38250.0,38249.0,0.44107566]
[1646692442095,0.0033,38250.0,38249.0,0.54889392]
[1646692442336,0.0033,38250.0,38249.0,0.44107566]
[1646692444638,0.0005,38251.0,38249.0,0.44107566]
[1646692444837,0.0005,38251.0,38250.0,0.46535954]
[1646692445037,0.00161999,38252.0,38250.0,0.51535954]
[1646692445236,0.00161999,38252.0,38251.0,0.3]
[1646692445437,0.00161999,38252.0,38251.0,0.35]
[1646692445838,0.00161999,38252.0,38251.0,0.45]
[1646692446587,0.0011,38263.0,38261.0,0.11788806]
[1646692446785,0.0011,38263.0,38261.0,0.16788806]
[1646692448785,0.0011,38263.0,38261.0,0.20630737]
[1646692453439,0.15,38267.0,38261.0,0.20630737]
[1646692454079,0.0022,38268.0,38261.0,0.20630737]
[1646692454680,0.0022,38268.0,38261.0,0.20130737]
[1646692454880,0.15,38267.0,38261.0,0.20130737]
[1646692457346,0.15,38267.0,38266.0,0.001]
[1646692457650,0.0022,38268.0,38261.0,0.20130737]
[1646692457845,0.15,38267.0,38261.0,0.20130737]
[1646692459347,0.00019352,38266.0,38261.0,0.19630737]
[1646692459651,0.02844,38268.0,38261.0,0.19630737]
[1646692459652,0.15195393,38268.0,38261.0,0.19630737]
[1646692460648,0.0022,38268.0,38261.0,0.19630737]
[1646692462484,0.02844,38270.0,38261.0,0.19630737]
[1646692462687,0.14887642,38269.0,38267.0,0.01]
[1646692462887,0.00020728,38268.0,38267.0,0.01]
[1646692463788,0.14887642,38269.0,38267.0,0.01]
[1646692464187,0.00020728,38269.0,38267.0,0.01]
[1646692465035,0.14887642,38269.0,38267.0,0.01]
[1646692466234,0.0022,38270.0,38267.0,0.01]
[1646692466434,0.00240728,38270.0,38267.0,0.01]
[1646692466640,0.31935569,38269.0,38267.0,0.01]
[1646692466836,0.46823211,38269.0,38267.0,0.01]
[1646692467037,0.45823211,38269.0,38267.0,0.01]
[1646692467338,0.30935569,38269.0,38267.0,0.01]
[1646692467635,0.14887642,38268.0,38267.0,0.01]
[1646692470692,0.52145806,38268.0,38267.0,0.01]
[1646692472745,0.2411024,38268.0,38267.0,0.01]
[1646692472947,0.52111297,38268.0,38267.0,0.01]
[1646692473648,0.37223655,38268.0,38267.0,0.01]
[1646692473845,0.52111297,38268.0,38267.0,0.01]
[1646692475249,0.37223655,38268.0,38267.0,0.01]
[1646692475846,0.09049967,38268.0,38267.0,0.01]
[1646692476286,0.09068988,38269.0,38267.0,0.01]
[1646692477086,0.09049967,38269.0,38267.0,0.01]
[1646692477487,0.09049967,38269.0,38267.0,0.00900001]
[1646692478087,0.37230558,38268.0,38267.0,0.00900001]
[1646692478290,0.31910451,38268.0,38267.0,0.00900001]
[1646692478888,0.31910451,38268.0,38267.0,0.00870001]
[1646692479287,0.31910451,38269.0,38267.0,0.00870001]
[1646692479689,0.31929453,38269.0,38267.0,0.00870001]
[1646692479949,0.31910451,38268.0,38267.0,0.00870001]
[1646692480749,0.31910451,38268.0,38267.0,0.01870001]
[1646692481749,0.00019002,38269.0,38268.0,0.00063186]
[1646692481949,0.37450558,38270.0,38268.0,0.00063186]
[1646692482150,0.00019005,38269.0,38268.0,0.00063186]
[1646692483153,0.523382,38270.0,38268.0,0.00063186]
[1646692483154,0.37450558,38270.0,38268.0,0.00063186]
[1646692483350,0.37469563,38270.0,38268.0,0.00063186]
[1646692484290,0.37450558,38270.0,38268.0,0.00063186]
[1646692484689,0.37230558,38269.0,38268.0,0.00063186]
[1646692486091,0.37469562,38270.0,38268.0,0.00063186]
[1646692486690,0.37450558,38270.0,38268.0,0.00063186]
[1646692488046,0.523382,38270.0,38268.0,0.00063186]
[1646692488445,0.37450558,38270.0,38268.0,0.00063186]
[1646692489848,0.36950558,38270.0,38268.0,0.00063186]
[1646692490856,0.36260558,38270.0,38268.0,0.00063186]
[1646692495933,0.14887642,38269.0,38268.0,0.00063186]
[1646692496137,0.36260558,38270.0,38268.0,0.00063186]
[1646692496834,0.14857642,38269.0,38268.0,0.00063186]
[1646692497634,0.36280278,38270.0,38268.0,0.00063186]
[1646692498035,0.14367642,38269.0,38268.0,0.00063186]
[1646692503956,0.36279557,38270.0,38268.0,0.00063186]
[1646692504756,0.36260558,38270.0,38268.0,0.00063186]
[1646692506089,0.35760558,38270.0,38268.0,0.00063186]
[1646692507296,0.14367642,38269.0,38268.0,0.00063186]
[1646692508494,0.3577954,38270.0,38268.0,0.00063186]
[1646692509396,0.14807642,38271.0,38268.0,0.00063186]
[1646692509595,0.401655,38270.0,38268.0,0.00063186]
[1646692510438,0.401655,38269.0,38268.0,0.00063186]
[1646692510638,0.14807642,38271.0,38268.0,0.00063186]
[1646692511040,0.14826626,38271.0,38268.0,0.00063186]
[1646692511640,0.401655,38270.0,38268.0,0.00063186]
[1646692512043,0.14826626,38271.0,38268.0,0.00063186]
[1646692512242,0.00458984,38271.0,38268.0,0.00063186]
[1646692512441,0.00419456,38271.0,38268.0,0.00063186]
[1646692512641,0.401655,38270.0,38268.0,0.00063186]
[1646692512842,0.00419456,38271.0,38268.0,0.00063186]
[1646692513045,0.77397418,38270.0,38268.0,0.00063186]
[1646692513243,0.37231918,38270.0,38268.0,0.00063186]
[1646692513685,0.37651374,38271.0,38268.0,0.00063186]
[1646692514083,0.401655,38270.0,38268.0,0.00063186]
[1646692514282,0.37231918,38270.0,38268.0,0.00063186]
[1646692514682,0.401655,38269.0,38268.0,0.00063186]
[1646692514884,0.37231918,38270.0,38268.0,0.00063186]
[1646692515085,0.401655,38269.0,38268.0,0.00063186]
[1646692516583,0.77397418,38269.0,38268.0,0.00063186]
[1646692519344,0.4891036,38269.0,38268.0,0.00063186]
[1646692519549,0.5891036,38269.0,38268.0,0.00063186]
[1646692519743,0.6391036,38269.0,38268.0,0.00063186]
[1646692519946,1.03648345,38269.0,38268.0,0.00063186]
[1646692520646,1.18952533,38269.0,38268.0,0.00063186]
[1646692520849,1.18952533,38269.0,38261.0,0.11788806]
[1646692520850,1.26576533,38269.0,38261.0,0.11788806]
[1646692521095,0.31917288,38262.0,38261.0,0.11788806]
[1646692521296,0.501655,38262.0,38261.0,0.11788806]
[1646692521691,0.87402336,38262.0,38261.0,0.11788806]
[1646692522098,0.63621281,38262.0,38261.0,0.11788806]
[1646692522294,0.8706959,38262.0,38261.0,0.11788806]
[1646692522591,0.63291564,38262.0,38261.0,0.11788806]
[1646692522992,1.0238874,38262.0,38261.0,0.11788806]
[1646692523190,1.4738874,38262.0,38261.0,0.11788806]
[1646692523391,1.4738874,38262.0,38261.0,8.06e-06]
[1646692523392,2.3242874,38262.0,38261.0,8.06e-06]
[1646692523593,1.402027,38260.0,38259.0,8.13e-06]
[1646692523891,1.83024407,38260.0,38249.0,0.79816964]
[1646692524094,0.401627,38250.0,38249.0,0.79816964]
[1646692524293,0.26598296,38253.0,38251.0,0.16604924]
[1646692524494,0.401633,38252.0,38251.0,0.16604924]
[1646692524694,0.69530942,38252.0,38251.0,0.16604924]
[1646692525138,0.551633,38252.0,38251.0,0.16604924]
[1646692525435,0.69530942,38252.0,38251.0,0.16604924]
[1646692525634,1.02669538,38252.0,38251.0,0.16604924]
[1646692525835,1.61111242,38252.0,38251.0,0.16604924]
[1646692526034,1.20168418,38252.0,38251.0,0.16604924]
[1646692526235,1.65168418,38252.0,38251.0,0.16604924]
[1646692526436,1.91748587,38252.0,38251.0,9.24e-06]
[1646692526636,2.11728587,38252.0,38251.0,9.24e-06]
[1646692526837,1.85148418,38252.0,38251.0,9.24e-06]
[1646692527239,1.46051242,38252.0,38251.0,9.24e-06]
[1646692527837,1.49879326,38252.0,38251.0,9.24e-06]
[1646692528035,2.29919326,38252.0,38251.0,9.24e-06]
[1646692528237,2.56492136,38252.0,38251.0,9.24e-06]
[1646692528438,2.69016502,38252.0,38251.0,9.24e-06]
[1646692528688,2.79016502,38252.0,38251.0,9.24e-06]
[1646692528891,2.39919326,38252.0,38251.0,9.24e-06]
[1646692529393,2.41226326,38252.0,38249.0,1.888e-05]
[1646692529591,1.92654242,38250.0,38249.0,1.888e-05]
[1646692529794,2.39227871,38250.0,38249.0,1.888e-05]
[1646692530191,2.33907089,38250.0,38249.0,1.888e-05]
[1646692530591,2.51738114,38250.0,38249.0,1.888e-05]
[1646692531193,4.95658685,38250.0,38249.0,1.888e-05]
[1646692531393,4.96965685,38250.0,38249.0,1.888e-05]
[1646692531595,5.23539314,38250.0,38249.0,1.888e-05]
[1646692531794,4.96965685,38250.0,38249.0,1.888e-05]
[1646692531993,5.16069557,38250.0,38249.0,1.888e-05]
[1646692532198,5.16069557,38250.0,38227.0,0.3020566]
[1646692532199,0.82664,38241.0,38227.0,0.3020566]
[1646692532450,0.091674,38234.0,38223.0,0.01307]
[1646692532645,0.855834,38234.0,38227.0,0.00082782]
[1646692532845,0.551633,38233.0,38227.0,0.00082782]
[1646692533442,0.065437,38231.0,38221.0,0.2879]
[1646692533843,0.065437,38231.0,38219.0,0.31429878]
[1646692534042,0.05,38230.0,38219.0,0.31429878]
[1646692534242,0.1,38232.0,38219.0,0.01307]
[1646692534441,0.1,38232.0,38219.0,0.01308]
[1646692534643,0.065431,38231.0,38219.0,0.01308]
[1646692535443,0.065431,38231.0,38218.0,0.1155]
[1646692535643,0.02624,38230.0,38218.0,0.1155]
[1646692535944,0.065438,38228.0,38218.0,0.1155]
[1646692536194,0.115438,38228.0,38223.0,0.00020691]
[1646692536991,0.32746878,38227.0,38219.0,0.00632358]
[1646692537294,0.30122878,38227.0,38224.0,0.00020691]
[1646692537491,0.115438,38228.0,38224.0,0.00020691]
[1646692537693,0.115438,38228.0,38226.0,0.01]
[1646692537891,0.981282,38228.0,38226.0,0.01]
[1646692538092,0.115438,38228.0,38226.0,0.01]
[1646692538896,0.70286178,38227.0,38225.0,0.00020691]
[1646692539096,0.401633,38226.0,38225.0,0.00020691]
[1646692539295,0.2,38226.0,38225.0,0.00020691]
[1646692539496,0.02624,38225.0,38213.0,0.00632358]
[1646692539695,0.065444,38224.0,38218.0,0.00080401]
[1646692539941,0.115444,38224.0,38218.0,0.00080401]
[1646692540144,0.215444,38224.0,38218.0,0.00080401]
[1646692540343,0.065444,38224.0,38218.0,0.00080401]
[1646692540540,0.05,38223.0,38218.0,0.00080401]
[1646692540742,0.05,38223.0,38206.0,0.1219]
[1646692540743,0.05,38223.0,38207.0,0.251444]
[1646692540942,0.065449,38221.0,38219.0,0.00019081]
[1646692541346,0.05,38223.0,38219.0,0.00019081]
[1646692541742,0.05,38224.0,38219.0,0.00019081]
[1646692541942,0.05,38224.0,38216.0,0.00632358]
[1646692542146,0.05,38224.0,38219.0,0.00019081]
[1646692542345,0.115451,38224.0,38219.0,0.00019081]
[1646692542544,0.04063694,38223.0,38215.0,0.00516856]
[1646692542849,0.30122878,38222.0,38215.0,0.00516856]
[1646692543047,0.401633,38220.0,38211.0,0.01]
[1646692543246,0.180908,38221.0,38211.0,0.01]
[1646692543445,0.401633,38220.0,38211.0,0.01]
[1646692543695,0.1,38219.0,38212.0,0.00516856]
[1646692544094,0.049,38218.0,38212.0,0.00516856]
[1646692544494,0.049,38218.0,38214.0,0.00010073]
[1646692544695,0.401633,38217.0,38214.0,0.00010073]
[1646692545095,0.401633,38216.0,38214.0,0.00010073]
[1646692545295,0.049,38218.0,38214.0,0.00010073]
[1646692545497,0.049,38218.0,38212.0,0.00516856]
[1646692545695,0.049,38218.0,38214.0,0.00010073]
[1646692546095,0.401633,38222.0,38214.0,0.00010073]
[1646692546296,0.401633,38220.0,38214.0,0.00010073]
[1646692546496,0.05,38220.0,38214.0,0.00526929]
[1646692546696,0.05,38220.0,38214.0,0.00516856]
[1646692546994,0.15,38221.0,38216.0,0.00019699]
[1646692547439,0.05,38221.0,38216.0,0.00019699]
[1646692547640,0.01307,38222.0,38217.0,0.00516856]
[1646692548042,0.01307,38222.0,38217.0,0.00536053]
[1646692548640,0.01307,38222.0,38218.0,0.00516856]
[1646692549038,0.04063694,38223.0,38218.0,0.00516856]
[1646692549039,0.10370694,38223.0,38218.0,0.00516856]
[1646692549239,0.10370694,38223.0,38221.0,0.001]
[1646692549944,0.115443,38222.0,38221.0,0.001]
[1646692550140,0.165443,38222.0,38221.0,0.001]
[1646692550340,0.115443,38222.0,38221.0,0.001]
[1646692554297,0.01271604,38216.0,38214.0,0.0007579]
[1646692554939,0.01243202,38216.0,38214.0,0.0007579]
[1646692555140,0.01243202,38216.0,38211.0,0.01]
[1646692555342,0.01243202,38216.0,38213.0,0.02624]
[1646692555543,0.01243202,38216.0,38214.0,0.401633]
[1646692555741,0.01243202,38216.0,38214.0,0.427873]
[1646692555946,0.01243202,38216.0,38215.0,0.001]
[1646692556141,0.01243202,38216.0,38215.0,0.428873]
[1646692557443,0.01243202,38216.0,38215.0,0.73010178]
[1646692558241,0.01243202,38216.0,38215.0,0.72710178]
[1646692558694,3.202e-05,38216.0,38215.0,0.82710178]
[1646692558892,3.202e-05,38216.0,38215.0,0.87710178]
[1646692559190,3.202e-05,38216.0,38215.0,0.89017178]
[1646692559791,3.202e-05,38216.0,38215.0,1.30677178]
[1646692560196,3.202e-05,38216.0,38215.0,2.10717178]
[1646692560398,0.00020691,38225.0,38223.0,0.8004]
[1646692560595,0.00020691,38233.0,38224.0,1.74495678]
[1646692560793,0.00020691,38233.0,38232.0,0.17624]
[1646692560994,0.00020691,38233.0,38232.0,0.578934]
[1646692561495,0.00020691,38233.0,38232.0,0.678934]
[1646692562547,0.00020691,38233.0,38232.0,0.728934]
[1646692562746,0.00020691,38233.0,38232.0,0.778934]
[1646692563544,0.00020691,38233.0,38232.0,0.628934]
[1646692563749,0.00020691,38245.0,38233.0,0.02624]
[1646692563948,0.00020691,38245.0,38237.0,0.02624]
[1646692564246,0.00020691,38245.0,38238.0,0.401694]
[1646692564449,0.00020691,38245.0,38241.0,0.02624]
[1646692564650,0.00020691,38245.0,38243.0,0.02624]
[1646692564847,0.00020691,38245.0,38244.0,0.42779998]
[1646692566790,0.00020691,38245.0,38244.0,0.52779998]
[1646692566992,0.00020691,38245.0,38244.0,1.07902876]
[1646692567193,0.00020691,38245.0,38244.0,2.77779998]
[1646692567391,0.00020691,38245.0,38244.0,0.77779998]
[1646692567591,0.00020691,38245.0,38244.0,1.77779998]
[1646692567790,0.00020691,38245.0,38244.0,0.77779998]
[1646692567991,0.00020691,38245.0,38244.0,1.07902876]
[1646692568392,0.00020691,38245.0,38244.0,0.77779998]
[1646692568591,0.00020691,38245.0,38244.0,0.84317798]
[1646692568992,0.00020691,38245.0,38244.0,1.14440676]
[1646692570339,0.00020691,38245.0,38244.0,1.04440676]
[1646692570741,0.00020691,38245.0,38244.0,1.14440676]
[1646692571740,0.00020691,38245.0,38244.0,0.84317798]
[1646692573693,0.00158304,38256.0,38246.0,0.02624]
[1646692573888,0.00158304,38256.0,38247.0,0.427869]
[1646692574091,0.00158304,38256.0,38255.0,0.001]
[1646692574289,0.00158304,38256.0,38249.0,0.02624]
[1646692574488,0.00158304,38256.0,38251.0,0.02624]
[1646692574689,0.00158304,38256.0,38252.0,0.427869]
[1646692575892,0.00175853,38256.0,38252.0,0.427869]
[1646692576795,0.00158304,38256.0,38252.0,0.427869]
[1646692576993,0.00175853,38256.0,38252.0,0.427869]
[1646692577841,0.00158304,38256.0,38252.0,0.427869]
[1646692578242,0.00175853,38256.0,38252.0,0.427869]
[1646692579045,0.00158304,38256.0,38255.0,0.001]
[1646692579243,0.00158304,38256.0,38255.0,0.40182784]
[1646692579446,0.0017714,38256.0,38255.0,0.40182784]
[1646692580444,0.00158304,38256.0,38255.0,0.40182784]
[1646692582897,0.00318304,38261.0,38255.0,0.00019884]
[1646692583095,0.00017227,38257.0,38256.0,0.401629]
[1646692583496,0.00017227,38257.0,38255.0,0.00019884]
[1646692583896,0.065381,38260.0,38255.0,0.00019884]
[1646692584296,0.115381,38260.0,38250.0,0.001]
[1646692584496,0.115381,38260.0,38251.0,0.401629]
[1646692584840,0.115381,38260.0,38251.0,0.427869]
[1646692585444,0.00017227,38257.0,38251.0,0.427869]
[1646692586043,0.00017227,38257.0,38251.0,0.401629]
[1646692586442,0.05,38260.0,38251.0,0.401629]
[1646692586643,0.00017526,38256.0,38252.0,0.401629]
[1646692587743,0.05,38260.0,38249.0,0.065375]
[1646692587942,0.00017526,38256.0,38250.0,0.401629]
[1646692588795,0.05,38260.0,38250.0,0.401629]
[1646692588995,0.05,38260.0,38250.0,0.427869]
[1646692588996,0.00017526,38255.0,38250.0,0.427869]
[1646692589196,0.00017526,38255.0,38254.0,0.001]
[1646692589396,0.00017526,38255.0,38254.0,0.402629]
[1646692590008,0.00318304,38261.0,38255.0,0.02624]
[1646692590202,0.00180472,38270.0,38260.0,0.17624]
[1646692590402,0.80469824,38268.0,38261.0,0.927869]
[1646692590602,0.98290169,38276.0,38261.0,0.927869]
[1646692590799,0.09110169,38276.0,38263.0,0.17624]
[1646692591001,0.98290169,38276.0,38267.0,0.02624]
[1646692591200,0.98290169,38276.0,38270.0,0.02624]
[1646692591403,0.01306,38281.0,38274.0,0.02624]
[1646692591605,0.0011,38282.0,38275.0,0.02624]
[1646692591799,0.0011,38282.0,38276.0,0.401629]
[1646692591999,0.0011,38282.0,38272.0,0.02624]
[1646692592199,0.0011,38282.0,38274.0,0.02624]
[1646692593149,0.0011,38282.0,38276.0,0.02624]
[1646692593350,0.0011,38282.0,38274.0,0.02624]
[1646692593548,0.0011,38282.0,38275.0,0.02624]
[1646692593749,0.00020481,38278.0,38275.0,0.02624]
[1646692593949,0.00020481,38278.0,38271.0,0.2]
[1646692594352,0.00020481,38278.0,38277.0,0.001]
[1646692594750,0.0011,38282.0,38277.0,0.001]
[1646692594953,0.03730481,38279.0,38277.0,0.001]
[1646692595951,0.0371,38279.0,38277.0,0.001]
[1646692600949,0.0371,38279.0,38278.0,0.401629]
[1646692601153,0.0011,38279.0,38278.0,24.70220398]
[1646692601353,0.0011,38283.0,38278.0,24.70220398]
[1646692601354,0.00925507,38287.0,38280.0,0.00019]
[1646692601554,0.00925507,38287.0,38282.0,0.02624]
[1646692601555,0.00299309,38286.0,38282.0,0.02624]
[1646692601749,0.00299309,38286.0,38283.0,0.401629]
[1646692601952,1.999e-05,38284.0,38283.0,0.75220398]
[1646692602149,0.10044553,38285.0,38284.0,0.451629]
[1646692602352,0.0044,38289.0,38284.0,0.451629]
[1646692602353,0.0044,38297.0,38287.0,0.8004]
[1646692602552,0.0044,38297.0,38286.0,0.401629]
[1646692602553,0.0144,38300.0,38292.0,0.02624]
[1646692602753,0.0144,38300.0,38295.0,0.4271921]
[1646692602956,0.0144,38300.0,38297.0,0.401629]
[1646692603154,0.0144,38300.0,38299.0,0.401629]
[1646692603358,0.01305,38315.0,38299.0,0.93246398]
[1646692603601,0.0022,38319.0,38299.0,0.93246398]
[1646692603602,0.01305,38316.0,38299.0,1.78286398]
[1646692603803,0.01525,38319.0,38304.0,0.02624]
[1646692604000,0.0022,38319.0,38307.0,0.401489]
[1646692604202,0.0022,38319.0,38308.0,0.1]
[1646692604203,0.00305,38316.0,38308.0,0.1]
[1646692604400,0.0022,38319.0,38309.0,0.401489]
[1646692604601,0.0022,38319.0,38311.0,0.401489]
[1646692604800,0.0022,38319.0,38313.0,0.427729]
[1646692604999,0.0022,38319.0,38313.0,0.72830398]
[1646692605198,0.0022,38319.0,38313.0,0.427729]
[1646692605404,0.0022,38319.0,38316.0,0.401489]
[1646692605799,0.0003102,38317.0,38316.0,0.427729]
[1646692606001,0.00051373,38317.0,38316.0,0.427729]
[1646692606401,0.00051373,38317.0,38316.0,0.401489]
[1646692606800,0.0003102,38317.0,38316.0,0.411489]
[1646692608058,0.0003102,38317.0,38316.0,0.437729]
[1646692608262,0.0003102,38317.0,38316.0,0.411489]
[1646692609361,0.09777459,38326.0,38316.0,0.411579]
[1646692609560,0.00020352,38318.0,38317.0,0.401489]
[1646692609757,0.09777459,38326.0,38317.0,0.4009663]
[1646692609758,0.09684443,38326.0,38317.0,0.4009663]
[1646692609957,0.09684443,38326.0,38316.0,0.01009]
[1646692610157,0.09517243,38326.0,38316.0,0.01009]
[1646692610558,0.09517243,38326.0,38317.0,0.40146]
[1646692610759,0.09517243,38326.0,38316.0,0.01009]
[1646692610760,0.09517243,38326.0,38316.0,0.72546242]
[1646692610962,0.09517243,38326.0,38317.0,0.40146]
[1646692611190,0.14517243,38326.0,38317.0,0.40146]
[1646692611590,0.14477243,38326.0,38317.0,0.40146]
[1646692611991,0.14477243,38326.0,38316.0,0.7255582]
[1646692612190,0.00350353,38319.0,38318.0,0.40146]
[1646692612591,0.00350353,38319.0,38317.0,0.3996177]
[1646692614391,0.00350353,38319.0,38317.0,0.6996177]
[1646692614594,0.00350353,38319.0,38317.0,0.3997077]
[1646692615241,1.15418228,38318.0,38317.0,0.3997077]
[1646692615439,1.15418228,38318.0,38317.0,0.43934754]
[1646692616243,1.15348228,38318.0,38317.0,0.43934754]
[1646692616642,1.15348228,38318.0,38317.0,0.3997077]
[1646692618801,1.14848228,38318.0,38317.0,0.3997077]
[1646692619399,1.14848228,38318.0,38317.0,0.3947077]
[1646692620199,1.14848228,38318.0,38317.0,0.39286552]
[1646692620902,1.14848228,38318.0,38317.0,0.39277552]
[1646692621503,1.14848228,38318.0,38316.0,0.72574605]
[1646692621504,0.05,38317.0,38316.0,0.72574605]
[1646692621703,1.17472228,38318.0,38316.0,0.72574605]
[1646692621704,1.14848228,38318.0,38316.0,0.72574605]
[1646692621903,1.14848228,38318.0,38317.0,0.39283]
[1646692622103,1.14848228,38318.0,38316.0,0.72574605]
[1646692622348,1.15048228,38318.0,38316.0,0.7255582]
[1646692622648,1.15048228,38318.0,38316.0,0.72574605]
[1646692623050,1.22672228,38318.0,38316.0,0.72574605]
[1646692623649,1.22672228,38318.0,38316.0,0.7255582]
[1646692623853,1.22472228,38318.0,38316.0,0.7255582]
[1646692624449,1.22772228,38318.0,38316.0,0.7255582]
[1646692625449,1.15148228,38318.0,38316.0,0.7255582]
[1646692625652,1.14848228,38318.0,38316.0,0.7255582]
[1646692625951,0.00350353,38319.0,38316.0,0.7255582]
[1646692626395,0.003,38318.0,38316.0,0.7255582]
[1646692627594,0.00350353,38319.0,38316.0,0.7255582]
[1646692628693,0.00350353,38319.0,38316.0,0.72574568]
[1646692629499,0.02474353,38322.0,38316.0,0.72574568]
[1646692629699,0.401469,38321.0,38316.0,0.7255582]
[1646692629941,0.02474353,38320.0,38316.0,0.72574568]
[1646692630143,0.12474353,38320.0,38316.0,0.72574568]
[1646692630444,0.02474353,38320.0,38316.0,0.72574568]
[1646692630745,0.02474353,38320.0,38316.0,0.7204682]
[1646692630941,0.02474353,38320.0,38316.0,0.72065568]
[1646692631945,0.02624,38322.0,38316.0,0.7204682]
[1646692632144,0.02624,38322.0,38316.0,0.72065567]
[1646692633143,0.02624,38322.0,38316.0,0.7204682]
[1646692633443,0.02624,38322.0,38317.0,0.00018746]
[1646692633898,0.02624,38321.0,38317.0,0.00018746]
[1646692634501,0.02624,38321.0,38316.0,0.7204682]
[1646692634699,0.02624,38321.0,38317.0,0.00018746]
[1646692635299,0.02295999,38321.0,38317.0,0.00018746]
[1646692635599,0.02295999,38321.0,38316.0,0.7204682]
[1646692635798,0.1,38325.0,38317.0,0.00018747]
[1646692635999,0.02624,38324.0,38317.0,0.00027747]
[1646692636399,0.02624,38323.0,38317.0,0.00027747]
[1646692636801,0.02624,38323.0,38317.0,9e-05]
[1646692636998,0.02624,38323.0,38318.0,0.00018746]
[1646692637848,0.22159985,38326.0,38318.0,0.00018746]
[1646692638047,0.22159985,38326.0,38317.0,0.30009]
[1646692638048,0.22141243,38326.0,38317.0,0.30009]
[1646692638249,0.02624,38323.0,38319.0,0.00018746]
[1646692638449,0.401469,38325.0,38319.0,0.00018746]
[1646692639248,0.09517243,38326.0,38317.0,0.30009]
[1646692639453,0.401469,38325.0,38320.0,0.00018746]
[1646692639849,0.02624,38324.0,38320.0,0.00018746]
[1646692640048,0.401469,38325.0,38320.0,0.00018746]
[1646692640348,0.401469,38325.0,38317.0,9e-05]
[1646692640551,0.09517243,38326.0,38320.0,0.00018746]
[1646692640749,0.401469,38325.0,38320.0,0.00018746]
[1646692640951,0.401456,38325.0,38320.0,0.00018746]
[1646692641395,0.09535986,38326.0,38320.0,0.00018746]
[1646692641593,0.401456,38325.0,38318.0,9e-05]
[1646692641793,0.09517243,38326.0,38321.0,0.00018746]
[1646692641996,0.401456,38325.0,38321.0,0.00018746]
[1646692642195,0.401456,38324.0,38321.0,0.00018746]
[1646692642396,0.09535986,38326.0,38321.0,0.00018746]
[1646692642593,0.396456,38325.0,38321.0,0.00018746]
[1646692642794,0.396456,38325.0,38318.0,0.30009]
[1646692642993,0.09517243,38326.0,38322.0,9.767e-05]
[1646692643195,0.40146,38325.0,38322.0,9.767e-05]
[1646692643396,0.09517243,38326.0,38322.0,9.767e-05]
[1646692643596,0.40146,38325.0,38322.0,9.767e-05]
[1646692643795,0.09517243,38326.0,38322.0,9.767e-05]
[1646692643995,0.09517243,38326.0,38318.0,9e-05]
[1646692644196,0.40146,38325.0,38322.0,0.00018723]
[1646692644601,0.09535964,38326.0,38322.0,0.00018723]
[1646692645242,0.09517243,38326.0,38320.0,9e-05]
[1646692645442,0.09517243,38326.0,38322.0,0.00018723]
[1646692645643,0.09535964,38326.0,38322.0,0.00018723]
[1646692645842,0.09535964,38326.0,38325.0,0.01]
[1646692646241,0.09035964,38326.0,38325.0,0.01]
[1646692646442,0.09017243,38326.0,38325.0,0.01]
[1646692650699,0.49163243,38326.0,38325.0,0.01]
[1646692650896,0.09017243,38326.0,38319.0,0.00154449]
[1646692652551,0.09217243,38326.0,38325.0,0.01]
[1646692652745,0.09226211,38326.0,38325.0,0.01]
[1646692652944,0.49372211,38326.0,38325.0,0.01]
[1646692653145,0.09226211,38326.0,38325.0,0.01]
[1646692653745,0.09017243,38326.0,38325.0,0.01]
[1646692657312,0.09017243,38326.0,38325.0,0.00126921]
[1646692657612,0.09017243,38326.0,38325.0,0.40272921]
[1646692657818,0.09017243,38326.0,38325.0,0.55272921]
[1646692658417,0.00626788,38328.0,38326.0,0.23661786]
[1646692658614,0.00626788,38328.0,38327.0,0.616672]
[1646692660548,0.00626788,38328.0,38327.0,0.642912]
[1646692660747,0.00626788,38328.0,38327.0,0.652912]
[1646692660950,0.00626788,38328.0,38327.0,0.94970686]
[1646692661150,0.0002051,38329.0,38328.0,0.07624]
[1646692661358,0.03907485,38350.0,38328.0,0.447735]
[1646692661359,0.24095816,38349.0,38328.0,0.447735]
[1646692661556,0.27100701,38355.0,38351.0,0.25]
[1646692661557,0.1962812,38355.0,38351.0,0.25]
[1646692661759,0.42756319,38360.0,38354.0,0.05]
[1646692661760,0.0033,38360.0,38354.0,0.05]
[1646692662052,0.0033,38365.0,38354.0,0.05]
[1646692662053,0.08245365,38380.0,38360.0,0.401075]
[1646692662254,0.04535365,38380.0,38377.0,0.006199]
[1646692662453,0.08542256,38384.0,38377.0,0.006199]
[1646692662454,0.08542256,38384.0,38380.0,0.05]
[1646692662654,0.08542256,38384.0,38383.0,0.550815]
[1646692662655,0.05891241,38384.0,38383.0,0.550815]
[1646692662854,0.18653709,38390.0,38384.0,0.001193]